[Event "Serbian League 2024"]
[Site "Bajina Basta"]
[Date "2024.09.28"]
[Round "1.24"]
[White "Tadic, Branko"]
[Black "Lukovic, Vladimir"]
[Result "1/2-1/2"]
[ECO "D37"]
[WhiteElo "2424"]
[BlackElo "2431"]
[Annotator "TA"]
[PlyCount "57"]
[EventDate "2024.09.26"]
[EventType "team-tourn"]
[EventCountry "SRB"]
[SourceTitle "playchess.com"]
[Source "ChessBase"]
[SourceQuality "1"]
[TimeControl "40/5400+30:1800+30"]

{[%evp 11,57,0,-2,-11,0,-11,13,14,16,27,29,20,63,60,77,0,0,5,0,7,0,0,0,0,0,0,0,0,0,0,0,0,0,0,0,-13,-31,-18,-20,-30,-21,-14,-14,-27,-7,-16,-13,-31]} 1. Nf3 {[%emt 0:00:09]} d5 {[%emt 0:00:19]} 2. d4 {[%emt 0:00:26]} Nf6 {[%emt 0:00:22]} 3. c4 {[%emt 0:00:07]} e6 {[%emt 0:00:40][%cal Be7e6,Be6d5][%mdl 32]} 4. Nc3 {[%emt 0:01:30]} Nbd7 {[%emt 0:00:41]} 5. e3 {[%emt 0:11:14]} a6 {[%emt 0:09:04]} 6. cxd5 {[%emt 0:03:50]} exd5 {[%emt 0:00:39]} 7. Bd3 {[%emt 0:03:50]} Bd6 {[%emt 0:01:04]} 8. Qc2 {[%emt 0:02:25]} b6 {[%emt 0:04:38]} 9. O-O {[%emt 0:11:15][%cal Oc3d5]} Bb7 {[%emt 0:03:17]} 10. e4 {[%emt 0:07:06]} dxe4 {[%emt 0:00:48]} 11. Nxe4 {[%emt 0:00:13]} Be7 {[%emt 0:10:37]} 12. Bg5 {[%emt 0:10:08]} O-O {[%emt 0:08:36] [#] White must now prevent ...Bxe4.} 13. Rfe1 {[%emt 0:07:05] White has more active pieces.} ({White should try} 13. Nxf6+ $16 Bxf6 14. Bf4 (14. Bxh7+ Kh8 $15)) 13... Bxe4 $11 {[%emt 0:11:36]} 14. Bxe4 {[%emt 0:00:57]} Nxe4 {[%emt 0:00:10]} 15. Bxe7 {[%emt 0:01:21]} Qxe7 {[%emt 0:00:06]} 16. Rxe4 {[%emt 0:00:03]} Qd6 {[%emt 0:00:20]} 17. Rae1 {[%emt 0:02:19]} Nf6 {[%emt 0:03:28]} 18. Re5 {[%emt 0:00:20]} Rad8 {[%emt 0:05:52]} 19. a3 {[%emt 0:00:31]} a5 {[%emt 0:00:30]} 20. h3 {[%emt 0:00:19]} Nd5 {[%emt 0:08:33]} 21. Qf5 {[%emt 0:02:42]} Qd7 {[%emt 0:03:05]} 22. Qe4 {[%emt 0:05:44]} g6 {[%emt 0:07:03]} 23. Qe2 {[%emt 0:10:17]} f6 {[%emt 0:02:08]} 24. Re4 {[%emt 0:00:25]} Kf7 {[%emt 0:00:34]} 25. Qc4 {[%emt 0:10:40]} Rfe8 {[%emt 0:00:25]} 26. Nd2 {[%emt 0:01:33]} Rxe4 {[%emt 0:00:58]} 27. Rxe4 {[%emt 0:00:34]} Re8 {[%emt 0:01:36]} 28. Rxe8 {[%emt 0:03:14]} Kxe8 {[%emt 0:00:05]} 29. Ne4 {[%emt 0:00:03] Weighted Error Value: White=0.09 (flawless) /Black=0.06 (flawless) .  Mistake:       	White=1     	---        Inaccurate:     	---       	Black=1      OK:         	White=9     	Black=10} 1/2-1/2

[Event "Serbian League 2024"]
[Site "Bajina Basta"]
[Date "2024.09.28"]
[Round "1.25"]
[White "Benkovic, Petar"]
[Black "Tarhan, Adar"]
[Result "0-1"]
[ECO "E94"]
[WhiteElo "2362"]
[BlackElo "2474"]
[Annotator "TA"]
[PlyCount "88"]
[EventDate "2024.09.26"]
[EventType "team-tourn"]
[EventCountry "SRB"]
[SourceTitle "playchess.com"]
[Source "ChessBase"]
[SourceQuality "1"]
[TimeControl "40/5400+30:1800+30"]

{[%evp 15,88,31,36,37,61,52,47,39,47,39,52,14,24,13,9,-20,48,40,50,14,19,2,10,0,0,-8,-18,-11,29,20,28,40,31,32,33,2,8,0,0,-23,125,114,151,163,166,159,145,0,0,0,0,-295,-345,-362,-358,-350,-321,-990,-963,-1347,-1243,-5231,-5147,-5704,-5397,-5164,-2639,-29978,-29979,-29988,-29988,-29984,-10624,-6064,-2250]} 1. Nf3 {[%emt 1:31:00]} Nf6 {[%emt 1:31:00]} 2. c4 {[%emt 0:00:30]} g6 {[%emt 0:00:30]} 3. Nc3 {[%emt 0:00:30]} Bg7 {[%emt 0:00:30]} 4. e4 {[%emt 0:00:30]} O-O {[%emt 0:00:30]} 5. d4 {[%emt 0:00:30]} d6 {[%emt 0:00:30]} 6. Be2 {[%emt 0:00:30]} e5 {[%emt 0:00:30]} 7. O-O {[%emt 0:00:30]} Bg4 {[%emt 0:00:30]} 8. d5 {[%emt 0:00:30]} a5 {[%emt 0:00:30]} 9. Ne1 {[%emt 0:00:30]} Bd7 {[%emt 0:00:30]} 10. Nd3 {[%emt 0:00:30]} Na6 {[%emt 0:00:30]} 11. Be3 {[%emt 0:00:30] White is slightly better.} b6 {[%emt 0:00:30][%cal Bb7b6,Bb6c5][%mdl 32]} 12. Rb1 {[%emt 0:00:30]} Nc5 {[%emt 0:00:30]} 13. f3 {[%emt 0:00:30]} Nh5 {[%emt 0:00:30]} 14. Qd2 {[%emt 0:00:30]} f5 {[%emt 0:00:30]} 15. b3 {[%emt 0:00:30]} Nf6 {[%emt 0:00:30]} (15... Nxd3 $11 16. Bxd3 f4) 16. Nxc5 {[%emt 0:00:30]} bxc5 {[%emt 0:00:30]} 17. Qe1 {[%emt 0:00:30]} Nh5 {[%emt 0:00:30]} 18. Bd2 {[%emt 0:00:30]} Nf4 {[%emt 0:00:30]} 19. Kh1 {[%emt 0:00:30]} a4 {[%emt 0:00:30]} 20. b4 {[%emt 0:00:30]} cxb4 {[%emt 0:00:30]} 21. Rxb4 {[%emt 0:00:30]} h5 {[%emt 0:00:30]} 22. Rf2 {[%emt 0:00:30]} Rb8 {[%emt 0:00:30]} 23. Rxb8 {[%emt 0:00:30]} Qxb8 {[%emt 0:00:30]} 24. Bf1 {[%emt 0:00:30] [#] aiming for g3.} h4 {[%emt 0:00:30]} 25. Bc1 {[%emt 0:00:30]} fxe4 {[%emt 0:00:30]} 26. Nxe4 {[%emt 0:00:30]} Qb1 {[%emt 0:00:30]} 27. Nc3 {[%emt 0:00:30]} (27. Rb2 $5 Qa1 $8 28. Rb7 $14) 27... Qf5 {[%emt 0:00:30]} (27... Nd3 $1 $11 28. Nxb1 Nxe1) 28. Ne4 $16 {[%emt 0:00:30]} Rb8 {[%emt 0:00:30] [#]} 29. g3 $1 {[%emt 0:00:30]} hxg3 {[%emt 0:00:30]} 30. hxg3 {[%emt 0:00:30]} Nh3 {[%emt 0:00:30]} 31. Rh2 {[%emt 0:00:30]} (31. Bxh3 $16 Qxh3+ 32. Rh2) 31... Qxf3+ $11 {[%emt 0:00:30]} 32. Bg2 {[%emt 0:00:30]} Qd3 {[%emt 0:00:30] The board is on fire.} 33. Rxh3 $4 {[%emt 0:00:30][%mdl 8192]} (33. Bf1 $11 Qf3+ 34. Bg2) 33... Bxh3 $19 {[%emt 0:00:30]} 34. Bxh3 {[%emt 0:00:30]} Rb1 {[%emt 0:00:30]} 35. Be6+ {[%emt 0:00:30]} Kh8 {[%emt 0:00:30]} 36. Ng5 $2 {[%emt 0:00:30]} (36. Nc3 Qf3+ (36... Qxc4 $2 {too greedy.} 37. Nxb1 Bf6 38. Nc3 $18) 37. Kh2) 36... Bf6 {[%emt 0:00:30][%cal Of6g5] ( -> ...Bxg5!)} (36... Qxc4 37. Nf7+ Kh7 38. Ng5+ Kh6 39. Nf7+ Kh7 40. Ng5+ Kh8 41. Nf7+ Kh7 $11) 37. Nf7+ {[%emt 0:00:30]} Kh7 {[%emt 0:00:30]} 38. Kg2 {[%emt 0:00:30]} Qc2+ {[%emt 0:00:30]} 39. Qd2 {[%emt 0:00:30]} Rxc1 {[%emt 0:00:30]} 40. Qxc2 {[%emt 0:00:30]} Rxc2+ {[%emt 0:00:30]} 41. Kf3 {[%emt 0:30:30]} Rxa2 {[%emt 0:30:30]} 42. g4 {[%emt 0:00:30]} Rc2 {[%emt 0:00:30]} 43. g5 {[%emt 0:00:30]} Be7 {[%emt 0:00:30]} (43... Bg7 $142 44. Ke3 a3 (44... Rxc4 $2 45. Kd3 $19) 45. Kd3 a2 46. Kxc2 a1=Q (46... a1=B 47. Nd8 $11) 47. Nd8 e4 48. Kb3 Bb2 (48... Qc3+ {is a self mate.} 49. Ka4 Qxc4+ 50. Ka3 Bc3 51. Nc6 Kg7 52. Bg4 Bd2 53. Kb2 Qc3+ 54. Ka2 Bc1 55. Ne7 Qb2#) 49. Bg8+ Kxg8 50. Nc6 Qa3+ 51. Kc2 Bc3 (51... Qc3+ 52. Kd1 Qd3+ 53. Ke1 e3 54. Ne7+ Kf7 55. Nc8 Bc3#) 52. Ne7+ Kf7 53. Kd1 Qb2 54. Nc8 Qd2#) 44. Ke3 {[%emt 0:00:30]} Rxc4 {[%emt 0:00:30] Weighted Error Value: White=0.87/Black=0.27 (precise) .  Loses game:     	White=1     	---        Mistake:       	White=2     	Black=2      Inaccurate:     	White=5     	Black=2      OK:         	White=3     	Black=12     Best:        	White=3     	Black=3      Strong:       	White=1     	---} 0-1

[Event "Serbian League 2024"]
[Site "Bajina Basta"]
[Date "2024.09.28"]
[Round "1.26"]
[White "Celik, Hasan Huseyin"]
[Black "Eren, Ataberk"]
[Result "1-0"]
[ECO "D46"]
[WhiteElo "2425"]
[BlackElo "2386"]
[Annotator "TA"]
[PlyCount "77"]
[EventDate "2024.09.26"]
[EventType "team-tourn"]
[EventCountry "SRB"]
[SourceTitle "playchess.com"]
[Source "ChessBase"]
[SourceQuality "1"]
[TimeControl "40/5400+30:1800+30"]

{[%evp 21,77,9,18,-14,-3,-5,68,54,89,81,129,139,172,127,133,150,146,133,179,160,175,171,168,133,139,143,143,142,179,150,268,272,275,208,208,195,214,217,227,235,227,208,206,218,219,210,670,667,1166,1140,1550,1479,29989,29990,29990,6526,29991,29992]} 1. d4 {[%emt 0:00:19]} Nf6 {[%emt 0:00:15]} 2. c4 {[%emt 0:00:08]} e6 {[%emt 0:00:08]} 3. Nf3 {[%emt 0:00:08]} d5 {[%emt 0:00:12]} 4. Nc3 {[%emt 0:00:10]} c6 {[%emt 0:00:08]} 5. e3 {[%emt 0:00:21]} Nbd7 {[%emt 0:00:09]} 6. Qc2 {[%emt 0:00:13]} Bd6 {[%emt 0:00:08]} 7. Bd3 {[%emt 0:00:10]} O-O {[%emt 0:00:28]} 8. O-O {[%emt 0:00:08]} dxc4 {[%emt 0:00:10]} 9. Bxc4 {[%emt 0:00:03]} b5 {[%emt 0:00:09]} 10. Bd3 {[%emt 0:00:06]} Bb7 {[%emt 0:00:19]} 11. e4 {[%emt 0:00:27]} e5 {[%emt 0:00:09]} 12. Bg5 {[%emt 0:00:08]} exd4 {[%emt 0:13:34]} 13. Nxd4 {[%emt 0:00:04]} (13. e5 $5 Nxe5 14. Bxh7+ (14. Nxd4 Nxd3 15. Qxd3 h6 $15) 14... Kh8 15. Nxd4 $11) 13... Ne5 {[%emt 0:01:55]} (13... Bxh2+ $11 14. Kh1 Ne5) 14. Nf5 $1 $14 {[%emt 0:26:15] Threatens to win with Rad1. White is slightly better.} Bc5 {[%emt 0:43:38]} 15. Be2 {[%emt 0:14:09][%cal Oc3a4] aiming for Na4!} Qb6 {[%emt 0:08:27]} (15... Bc8 $142) 16. Bxf6 $16 {[%emt 0:04:56]} gxf6 {[%emt 0:00:07]} 17. Qc1 {[%emt 0:01:19] Threatening mate with Qh6.} Rfe8 {[%emt 0:05:48]} 18. Qh6 {[%emt 0:03:11]} Bf8 {[%emt 0:01:06] Prevents Qg7+.} 19. Qxf6 $40 {[%emt 0:00:07][%mdl 128] White goes for the king.} Ng6 {[%emt 0:06:40]} (19... b4 $16 {keeps fighting.}) 20. Rad1 {[%emt 0:05:09] Strongly threatening Rd7.} Re6 {[%emt 0:00:12]} 21. Qg5 {[%emt 0:01:21]} Qc7 {[%emt 0:00:39]} 22. Bf3 {[%emt 0:08:22]} Kh8 {[%emt 0:02:22]} 23. Ne2 {[%emt 0:06:10] White has more active pieces.} c5 {[%emt 0:04:52] Prevents Ned4} 24. Nc3 {[%emt 0:01:04]} Nf4 {[%emt 0:04:54]} 25. Qh4 {[%emt 0:05:40][%cal Oc3d5] Inhibits Nh3+.} (25. Nxb5 $6 Qe5 $14) 25... Rg6 {[%emt 0:01:59]} (25... Ng6 $16 26. Qh5 (26. Nxb5 Qa5 $15) 26... b4) 26. Nxb5 {[%emt 0:08:53] A dynamic duo of knights.} Qe5 {[%emt 0:00:33]} 27. Rfe1 {[%emt 0:01:00]} Ba6 {[%emt 0:02:06]} 28. a4 {[%emt 0:01:31]} Re8 {[%emt 0:01:40]} 29. g3 {[%emt 0:02:58]} (29. Nxa7 Bg7 30. g4 Qxb2 $14) 29... Bxb5 {[%emt 0:01:37]} 30. axb5 {[%emt 0:00:02]} c4 {[%emt 0:00:19]} 31. Kf1 {[%emt 0:03:04]} ({Don't blunder} 31. Rd7 $2 Qxf5 (31... Qxb5 $2 {is the wrong capture.} 32. Rxf7 Bg7 33. Qxf4 $18) 32. Rb7 Qg5 33. Qxg5 Rxg5 $19) 31... Nd3 {[%emt 0:00:14]} 32. Re2 {[%emt 0:00:05]} Qxb5 {[%emt 0:00:27] [#]} 33. Bh5 $1 {[%emt 0:00:24]} Rb6 {[%emt 0:01:04]} (33... Qa4 34. Red2 Kg8 35. Bxg6 hxg6) 34. Bxf7 $18 {[%emt 0:00:12]} Rc8 {[%emt 0:00:30]} 35. Qg4 {[%emt 0:00:38][%csl Gf7][%cal Rg4g8]} Bh6 {[%emt 0:00:26] [#]} 36. Nd6 $1 {[%emt 0:00:17][%mdl 512]} Rxd6 {[%emt 0:00:31]} (36... Rf8 37. Nxb5) 37. Qxc8+ {[%emt 0:00:02]} Kg7 {[%emt 0:00:05]} 38. Qg8+ {[%emt 0:00:05]} Kf6 {[%emt 0:00:03]} 39. e5+ {[%emt 0:00:04] Weighted Error Value: White=0.14 (very precise) /Black=0.58.  Mistake:       	---       	Black=5      Inaccurate:     	---       	Black=2      OK:         	White=8     	Black=11     Best:        	White=1     	---        Strong:       	White=1     	---} 1-0

[Event "Serbian League 2024"]
[Site "Bajina Basta"]
[Date "2024.09.28"]
[Round "1.27"]
[White "Ozsakallioglu, Okan"]
[Black "Kovacevic, Aleksandar"]
[Result "1-0"]
[ECO "B90"]
[WhiteElo "2349"]
[BlackElo "2479"]
[Annotator "RC"]
[PlyCount "137"]
[EventDate "2024.09.26"]
[EventType "team-tourn"]
[EventCountry "SRB"]
[SourceTitle "playchess.com"]
[Source "ChessBase"]
[SourceQuality "1"]
[TimeControl "40/5400+30:1800+30"]

1. e4 {[%emt 0:00:02]} c5 {[%emt 0:00:30]} 2. Nf3 {[%emt 0:00:05]} d6 {[%emt 0:00:11]} 3. d4 {[%emt 0:00:04]} cxd4 {[%emt 0:00:10]} 4. Nxd4 {[%emt 0:00:05]} Nf6 {[%emt 0:00:06]} 5. Nc3 {[%emt 0:00:04]} a6 {[%emt 0:00:11]} 6. Be3 {[%emt 0:00:50]} e5 {[%emt 0:00:41]} 7. Nb3 {[%emt 0:00:11]} Be6 {[%emt 0:00:38]} 8. h3 {[%emt 0:00:14]} Be7 {[%emt 0:01:23]} 9. Qf3 {[%emt 0:03:16]} O-O {[%emt 0:00:58]} 10. O-O-O {[%emt 0:04:42]} a5 {[%emt 0:00:31]} 11. Nc5 {[%emt 0:04:43]} Qc8 {[%emt 0:24:50]} 12. N5a4 {[%emt 0:00:53]} Nbd7 {[%emt 0:02:42]} 13. g4 {[%emt 0:00:17]} Bc4 {[%emt 0:20:33]} 14. g5 {[%emt 0:07:03]} Ne8 {[%emt 0:00:20]} 15. h4 {[%emt 0:12:33]} Bxf1 {[%emt 0:06:48]} 16. Rdxf1 {[%emt 0:00:46]} Qc6 {[%emt 0:01:49]} 17. Nd5 {[%emt 0:13:26]} Bd8 {[%emt 0:00:33]} 18. Nab6 {[%emt 0:01:03]} Ra6 {[%emt 0:04:12]} 19. Nxd7 {[%emt 0:04:31]} Qxd7 {[%emt 0:00:09]} 20. Kb1 {[%emt 0:01:54]} f5 {[%emt 0:02:52]} 21. exf5 {[%emt 0:02:49]} Rxf5 {[%emt 0:06:55]} 22. Qe4 {[%emt 0:02:17]} Rc6 {[%emt 0:03:23]} 23. c4 {[%emt 0:06:02]} Rf7 {[%emt 0:09:34]} 24. f4 {[%emt 0:03:27]} Qf5 {[%emt 0:01:53]} 25. Qxf5 {[%emt 0:00:06]} Rxf5 {[%emt 0:00:01]} 26. fxe5 {[%emt 0:00:46]} Rxf1+ {[%emt 0:02:14]} 27. Rxf1 {[%emt 0:00:05]} dxe5 {[%emt 0:00:27]} 28. b3 {[%emt 0:01:52]} g6 {[%emt 0:05:42]} 29. Bc1 {[%emt 0:01:33]} Ng7 {[%emt 0:00:19]} 30. Ne3 {[%emt 0:01:23]} Re6 {[%emt 0:03:43]} 31. Bb2 {[%emt 0:00:54]} Bc7 {[%emt 0:01:03]} 32. Kc2 {[%emt 0:03:43]} e4 {[%emt 0:00:11]} 33. Nd5 {[%emt 0:08:55]} Bd8 {[%emt 0:00:03]} 34. Bf6 {[%emt 0:01:02]} Bxf6 {[%emt 0:00:13]} 35. Nxf6+ {[%emt 0:00:06]} Kf7 {[%emt 0:00:08]} 36. Nxe4+ {[%emt 0:00:29]} Nf5 {[%emt 0:00:51]} 37. Ng3 {[%emt 0:00:26]} Re5 {[%emt 0:00:08]} 38. Nxf5 {[%emt 0:02:05]} gxf5 {[%emt 0:00:07]} 39. h5 {[%emt 0:00:04]} Ke6 {[%emt 0:01:27]} 40. Rg1 {[%emt 0:00:23]} Kf7 {[%emt 0:00:01]} 41. Kd3 {[%emt 0:30:54]} f4 {[%emt 0:10:03]} 42. Kd4 {[%emt 0:00:00]} Re2 {[%emt 0:03:04]} 43. Rf1 {[%emt 0:00:00]} Rxa2 {[%emt 0:02:47]} 44. Rxf4+ {[%emt 0:00:00]} Ke7 {[%emt 0:03:51]} 45. Rf5 {[%emt 0:00:00]} Rd2+ {[%emt 0:01:16]} 46. Kc3 {[%emt 0:00:00]} Rh2 {[%emt 0:01:15]} 47. Rxa5 {[%emt 0:00:00]} Rxh5 {[%emt 0:00:34]} 48. Rb5 {[%emt 0:00:00]} Kd6 {[%emt 0:00:15]} 49. Rxb7 {[%emt 0:00:00]} Rxg5 {[%emt 0:00:04]} 50. Rxh7 {[%emt 0:00:00]} Kc6 {[%emt 0:00:16]} 51. Rh6+ {[%emt 0:00:00]} Kc7 {[%emt 0:00:05]} 52. Kb4 {[%emt 0:00:00]} Kb7 {[%emt 0:00:12]} 53. c5 {[%emt 0:00:00]} Rg7 {[%emt 0:00:16]} 54. Kb5 {[%emt 0:00:00]} Rf7 {[%emt 0:00:12]} 55. b4 {[%emt 0:00:00]} Rg7 {[%emt 0:00:03]} 56. Ka5 {[%emt 0:00:00]} Rg1 {[%emt 0:00:23]} 57. Rf6 {[%emt 0:00:00]} Rh1 {[%emt 0:00:31]} 58. Kb5 {[%emt 0:00:00]} Rh7 {[%emt 0:00:26]} 59. Rf4 {[%emt 0:00:00]} Rg7 {[%emt 0:00:17]} 60. Kc4 {[%emt 0:00:00]} Rh7 {[%emt 0:00:10]} 61. b5 {[%emt 0:00:00]} Rg7 {[%emt 0:00:09]} 62. Kb4 {[%emt 0:00:00]} Rh7 {[%emt 0:00:16]} 63. Ka5 {[%emt 0:00:00]} Rg7 {[%emt 0:00:05]} 64. Rd4 {[%emt 0:00:00]} Rg1 {[%emt 0:00:32]} 65. Rd7+ {[%emt 0:00:00]} Kc8 {[%emt 0:00:07]} 66. Rh7 {[%emt 0:00:00]} Kb8 {[%emt 0:00:31]} 67. Kb6 {[%emt 0:00:00]} Rg8 {[%emt 0:00:11]} 68. c6 {[%emt 0:00:00]} Rf8 {[%emt 0:00:04]} 69. Rb7+ {[%emt 0:00:00]} 1-0

[Event "Serbian League 2024"]
[Site "Bajina Basta"]
[Date "2024.09.28"]
[Round "1.28"]
[White "Omorjan, Dejan"]
[Black "Ljepic, Andrej"]
[Result "1/2-1/2"]
[ECO "D23"]
[WhiteElo "2299"]
[BlackElo "2326"]
[Annotator "RC"]
[PlyCount "119"]
[EventDate "2024.09.26"]
[EventType "team-tourn"]
[EventCountry "SRB"]
[SourceTitle "playchess.com"]
[Source "ChessBase"]
[SourceQuality "1"]
[TimeControl "40/5400+30:1800+30"]

1. d4 {[%emt 1:31:00]} d5 {[%emt 1:31:00]} 2. c4 {[%emt 0:00:30]} dxc4 {[%emt 0:00:30]} 3. Nf3 {[%emt 0:00:30]} Nf6 {[%emt 0:00:30]} 4. Qa4+ {[%emt 0:00:30]} c6 {[%emt 0:00:30]} 5. Qxc4 {[%emt 0:00:30]} Bf5 {[%emt 0:00:30]} 6. g3 {[%emt 0:00:30]} e6 {[%emt 0:00:30]} 7. Bg2 Be7 {[%emt 0:00:30]} 8. O-O {[%emt 0:01:00]} O-O {[%emt 0:00:30]} 9. Qb3 {[%emt 0:00:30]} Qb6 {[%emt 0:00:30]} 10. Nbd2 {[%emt 0:00:30]} Nbd7 {[%emt 0:00:30]} 11. Nc4 {[%emt 0:00:30]} Qa6 {[%emt 0:00:30]} 12. Bd2 {[%emt 0:00:30]} Be4 {[%emt 0:00:30]} 13. a4 {[%emt 0:00:30]} Bd5 {[%emt 0:00:30]} 14. Rfc1 {[%emt 0:00:30]} Nb6 {[%emt 0:00:30]} 15. Nfe5 {[%emt 0:00:30]} Nxc4 {[%emt 0:00:30]} 16. Nxc4 {[%emt 0:00:30]} Rfd8 {[%emt 0:00:30]} 17. f3 {[%emt 0:00:30]} e5 {[%emt 0:00:30]} 18. e4 {[%emt 0:00:30]} Be6 {[%emt 0:00:30]} 19. Bf1 {[%emt 0:00:30]} exd4 {[%emt 0:00:30]} 20. Bb4 {[%emt 0:00:30]} Bxb4 {[%emt 0:00:30]} 21. Qxb4 {[%emt 0:00:30]} d3 {[%emt 0:00:30]} 22. Ne5 {[%emt 0:00:30]} Qb6+ {[%emt 0:00:30]} 23. Qxb6 {[%emt 0:00:30]} axb6 {[%emt 0:00:30]} 24. Bxd3 {[%emt 0:00:30]} Ra5 {[%emt 0:00:30]} 25. f4 {[%emt 0:00:30]} Ng4 {[%emt 0:00:30]} 26. Nxg4 {[%emt 0:00:30]} Bxg4 {[%emt 0:00:30]} 27. Bf1 {[%emt 0:00:30]} Rd2 {[%emt 0:00:30]} 28. b4 {[%emt 0:00:30]} Rh5 {[%emt 0:00:30]} 29. Bg2 {[%emt 0:00:30]} h6 {[%emt 0:00:30]} 30. h3 {[%emt 0:00:30]} Be2 {[%emt 0:00:30]} 31. Re1 {[%emt 0:00:30]} g6 {[%emt 0:00:30]} 32. Ra3 {[%emt 0:00:30]} c5 {[%emt 0:00:30]} 33. g4 {[%emt 0:00:30]} Rh4 {[%emt 0:00:30]} 34. bxc5 {[%emt 0:00:30]} bxc5 {[%emt 0:00:30]} 35. Re3 {[%emt 0:00:30]} Bd3 {[%emt 0:00:30]} 36. e5 {[%emt 0:00:30]} h5 {[%emt 0:00:30]} 37. e6 {[%emt 0:00:30]} fxe6 {[%emt 0:00:30]} 38. Rxe6 {[%emt 0:00:30]} hxg4 {[%emt 0:00:30]} 39. Bd5 {[%emt 0:00:30]} Kg7 {[%emt 0:00:30]} 40. Re8 {[%emt 0:00:30]} Be2 {[%emt 0:00:30]} 41. Re7+ {[%emt 0:30:30]} Kf8 {[%emt 0:30:30]} 42. Rf7+ {[%emt 0:00:30]} Ke8 {[%emt 0:00:30]} 43. Bc4 {[%emt 0:00:30]} Rc2 {[%emt 0:00:30]} 44. Rxb7 {[%emt 0:00:30]} Rxc4 {[%emt 0:00:30]} 45. Rxe2+ {[%emt 0:00:30]} Kd8 {[%emt 0:00:30]} 46. a5 {[%emt 0:00:30]} gxh3 {[%emt 0:00:30]} 47. Kh2 {[%emt 0:00:30]} Ra4 {[%emt 0:00:30]} 48. Ra7 {[%emt 0:00:30]} Rhxf4 {[%emt 0:00:30]} 49. Kxh3 {[%emt 0:00:30]} Ra3+ {[%emt 0:00:30]} 50. Kg2 {[%emt 0:00:30]} c4 {[%emt 0:00:30]} 51. Rb2 {[%emt 0:00:30]} Kc8 {[%emt 0:00:30]} 52. Re2 {[%emt 0:00:30]} Kb8 {[%emt 0:00:30]} 53. Rg7 {[%emt 0:00:30]} Rf8 {[%emt 0:00:30]} 54. Rc2 {[%emt 0:00:30]} Rxa5 {[%emt 0:00:30]} 55. Rxg6 {[%emt 0:00:30]} Rc8 {[%emt 0:00:30]} 56. Rb6+ {[%emt 0:00:30]} Ka7 {[%emt 0:00:30]} 57. Rb4 {[%emt 0:00:30]} c3 {[%emt 0:00:30]} 58. Rb3 {[%emt 0:00:30]} Rc7 {[%emt 0:00:30]} 59. Rcxc3 {[%emt 0:00:30]} Rxc3 {[%emt 0:00:30]} 60. Rxc3 {[%emt 0:00:30]} 1/2-1/2